bitfinex/quotes_SOLUSD_20260113
["timestamp","ask_amount","ask_price","bid_price","bid_amount"]
[1768281013303,3.3048705,139.29,139.26,0.67288796]
[1768281014029,3.3048705,139.3,139.27,0.69771492]
[1768281014324,13.31899,139.31,139.27,0.69771492]
[1768281014526,3.3048705,139.3,139.27,0.69771492]
[1768281015712,3.3048705,139.3,139.28,0.69771492]
[1768281018105,0.09899,139.28,139.24,0.69771492]
[1768281018337,3.3048705,139.27,139.24,0.69771492]
[1768281018510,0.09899,139.28,139.24,0.69771492]
[1768281018710,3.4038605,139.28,139.24,0.69771492]
[1768281018909,3.3048705,139.26,139.24,0.69771492]
[1768281019213,3.3048705,139.27,139.25,0.69771492]
[1768281021924,3.3048705,139.26,139.23,0.69771492]
[1768281025933,7.18010105,139.28,139.24,0.69771492]
[1768281026137,0.09899,139.27,139.23,11.18490746]
[1768281026343,3.4038605,139.27,139.23,11.18490746]
[1768281026638,0.09899,139.26,139.23,10.48719254]
[1768281028841,0.09899,139.26,139.23,7.18232204]
[1768281030229,3.3048705,139.27,139.24,0.69771492]
[1768281030424,3.3048705,139.26,139.24,0.69771492]
[1768281030627,3.3048705,139.25,139.23,0.69771492]
[1768281030827,3.4038605,139.25,139.22,0.69771492]
[1768281031130,3.3048705,139.25,139.22,0.69771492]
[1768281031653,3.3048705,139.24,139.22,0.69771492]
[1768281031820,3.3048705,139.23,139.22,0.69771492]
[1768281032216,3.27487051,139.23,139.22,0.69771492]
[1768281032942,3.27487051,139.23,139.21,0.69771492]
[1768281033134,7.27999259,139.26,139.22,0.69771492]
[1768281033337,3.3048705,139.25,139.22,0.69771492]
[1768281033530,3.3048705,139.24,139.22,0.69771492]
[1768281036960,7.27999259,139.26,139.22,0.69771492]
[1768281037131,3.3048705,139.24,139.22,0.69771492]
[1768281038252,13.21899,139.27,139.22,0.69771492]
[1768281038446,13.21899,139.27,139.25,3.3048705]
[1768281038447,0.67938624,139.27,139.25,3.3048705]
[1768281038634,0.1,139.31,139.26,0.71186609]
[1768281038846,0.07000751,139.31,139.27,0.71186609]
[1768281039052,0.07000751,139.31,139.28,11.19620662]
[1768281039349,0.07000751,139.31,139.29,3.3048705]
[1768281039653,0.07000751,139.31,139.29,0.71186609]
[1768281039855,0.1,139.33,139.29,4.01673659]
[1768281040054,0.1,139.33,139.29,3.3048705]
[1768281040249,0.1,139.33,139.29,4.01673659]
[1768281040642,0.1,139.33,139.3,0.71186609]
[1768281040842,19.30606512,139.35,139.32,0.71186609]
[1768281041231,19.30606512,139.35,139.31,3.3048705]
[1768281041556,19.30606512,139.35,139.31,4.01673659]
[1768281041760,0.67938624,139.34,139.31,3.3048705]
[1768281041950,0.67938624,139.34,139.3,11.19547469]
[1768281042533,0.67938624,139.34,139.31,3.3048705]
[1768281042881,3.3048705,139.34,139.31,0.71186609]
[1768281043468,26.48233964,139.35,139.31,0.71186609]
[1768281043762,0.67938624,139.33,139.29,10.48399391]
[1768281043933,0.67938624,139.33,139.29,11.19586]
[1768281044130,3.98425674,139.34,139.3,0.71186609]
[1768281044351,11.16108334,139.34,139.3,0.71186609]
[1768281044556,0.67938624,139.33,139.3,0.71186609]
[1768281045355,3.98425674,139.33,139.3,0.71186609]
[1768281045764,7.85682367,139.33,139.29,0.71186609]
[1768281045965,3.3048705,139.32,139.29,0.71186609]
[1768281046465,3.3048705,139.31,139.28,13.83186609]
[1768281046762,0.67938624,139.3,139.26,4.01673659]
[1768281047352,0.67938624,139.3,139.26,2.82519191]
[1768281048555,0.67938624,139.3,139.26,0.71186609]
[1768281048865,0.67938624,139.3,139.26,7.89263887]
[1768281050152,7.8575086,139.32,139.27,2.82519191]
[1768281050379,0.67938624,139.31,139.27,0.71186609]
[1768281051171,0.67938624,139.31,139.27,2.82519191]
[1768281052048,0.67938624,139.31,139.27,10.00529346]
[1768281053559,0.67938624,139.31,139.27,7.89196764]
[1768281055365,0.67938624,139.31,139.28,2.11332582]
[1768281055551,0.67938624,139.31,139.27,10.00529346]
[1768281056978,2.79271206,139.32,139.28,0.71186609]
[1768281057179,0.67938624,139.31,139.28,0.71186609]
[1768281057561,0.67938624,139.3,139.27,0.71186609]
[1768281057759,2.79271206,139.31,139.27,0.71186609]
[1768281058273,0.67938624,139.3,139.27,0.71186609]
[1768281058872,2.11332582,139.31,139.27,0.71186609]
[1768281059075,0.67938624,139.3,139.26,10.00592321]
[1768281059373,0.67938624,139.3,139.26,7.89259739]
[1768281060067,0.67938624,139.29,139.26,0.71186609]
[1768281060452,2.79271206,139.29,139.26,0.71186609]
[1768281061486,2.79271206,139.27,139.17,0.71186609]
[1768281061665,0.67938624,139.27,139.23,0.71186609]
[1768281061856,2.11332582,139.25,139.22,0.71186609]
[1768281062755,7.8603728,139.26,139.22,0.71186609]
[1768281062947,2.11332582,139.25,139.22,0.71186609]
[1768281065389,0.70582181,139.27,139.23,0.66027153]
[1768281065575,0.70582181,139.26,139.22,0.66027153]
[1768281065749,0.70582181,139.25,139.22,0.66027153]
[1768281065949,0.70582181,139.25,139.21,13.76027153]
[1768281066158,0.70582181,139.25,139.21,20.94363657]
[1768281068575,2.81914763,139.25,139.21,20.94363657]
[1768281069382,2.11332582,139.25,139.22,0.66027153]
[1768281070776,2.81914763,139.27,139.23,0.66027153]
[1768281070980,0.70582181,139.26,139.22,7.84308842]
[1768281071159,0.70582181,139.28,139.24,0.66027153]
[1768281071359,0.70582181,139.28,139.25,23.07466982]
[1768281071573,0.70582181,139.28,139.25,20.961344]
[1768281071778,0.70582181,139.3,139.27,0.66027153]
[1768281072479,0.70582181,139.3,139.26,2.11332582]
[1768281072682,0.70582181,139.3,139.26,9.95416959]
[1768281073273,2.81914763,139.31,139.27,0.66027153]
[1768281073687,0.70644425,139.3,139.26,9.97046688]
[1768281074886,2.81977007,139.31,139.27,0.67656882]
[1768281075083,2.81977007,139.31,139.26,0.67656882]
[1768281075084,2.11332582,139.28,139.26,0.67656882]
[1768281075282,2.11332582,139.27,139.25,13.12]
[1768281076069,2.11332582,139.27,139.25,13.79656882]
[1768281077294,2.11332582,139.26,139.25,13.12]
[1768281079193,0.70644425,139.27,139.25,13.12]
[1768281079379,2.11332582,139.26,139.25,13.12]
[1768281079575,2.11332582,139.26,139.23,0.67656882]
[1768281079776,2.11332582,139.25,139.22,0.67656882]
[1768281081893,2.81977007,139.24,139.2,0.67656882]
[1768281082071,2.11332582,139.23,139.2,0.67656882]
[1768281083882,2.05587514,139.23,139.2,0.67656882]
[1768281085492,0.70644425,139.24,139.2,2.78989464]
[1768281085797,0.70644425,139.24,139.21,0.67656882]
[1768281086496,40.12021818,139.33,139.24,0.67656882]
[1768281086804,13.12,139.32,139.29,2.78989464]
[1768281087003,16.86750205,139.32,139.29,2.78989464]
[1768281087206,13.12,139.32,139.29,2.78989464]
[1768281087406,2.11332582,139.34,139.29,0.67656882]
[1768281087700,13.12,139.33,139.29,0.67656882]
[1768281087878,22.41056149,139.33,139.29,0.67656882]
[1768281088076,7.17723567,139.33,139.29,0.67656882]
[1768281088288,13.12,139.32,139.29,2.78989464]
[1768281089906,13.12,139.32,139.29,0.67656882]
[1768281090112,13.12,139.32,139.29,2.78989464]
[1768281090494,19.33312313,139.35,139.31,2.78989464]
[1768281090688,19.33312313,139.35,139.33,2.11332582]
[1768281091004,31.74667888,139.35,139.34,2.11332582]
[1768281091310,32.45312313,139.35,139.33,2.11332582]
[1768281091491,0.70644425,139.34,139.3,0.67656882]
[1768281091805,0.70644425,139.33,139.29,9.96904093]
[1768281091984,0.70644425,139.33,139.3,2.78989464]
[1768281092703,0.70644425,139.34,139.3,2.78989464]
[1768281093591,13.12,139.33,139.3,2.78989464]
[1768281093798,13.82644425,139.33,139.29,2.78989464]
[1768281093996,1e-08,139.37,139.36,0.67656882]
[1768281094201,12.395,139.4,139.39,0.67656882]
[1768281094406,13.22,139.41,139.39,2.11332582]
[1768281094780,13.87825252,139.41,139.32,6.6801107]
[1768281094979,0.65825252,139.4,139.38,2.11332582]
[1768281095184,0.65825252,139.4,139.37,2.11332582]
[1768281097097,0.65825252,139.4,139.32,8.79343652]
[1768281097098,0.65825252,139.39,139.35,2.11332582]
[1768281097493,0.65825252,139.39,139.38,2.11332582]
[1768281097807,0.65825252,139.4,139.37,2.11332582]
[1768281099288,0.65825252,139.4,139.36,9.2888464]
[1768281100506,2.77157834,139.4,139.35,2.11332582]
[1768281100697,0.65825252,139.39,139.35,2.11332582]
[1768281101716,13.1,139.38,139.36,2.11332582]
[1768281103211,13.1,139.38,139.33,7.25290144]
[1768281103412,13.75825252,139.38,139.36,2.11332582]
[1768281103595,13.75825252,139.38,139.35,2.11332582]
[1768281103998,13.75825252,139.38,139.33,7.25290144]
[1768281104321,13.75825252,139.38,139.36,2.11332582]
[1768281104322,13.72825254,139.38,139.36,2.11332582]
[1768281104818,13.07000002,139.38,139.36,2.11332582]
[1768281105307,0.65825252,139.39,139.36,2.11332582]
[1768281105511,13.1,139.38,139.36,2.11332582]
[1768281105815,0.65825252,139.39,139.36,2.11332582]
[1768281106008,13.1,139.38,139.36,9.3646122]
[1768281106209,13.1,139.38,139.37,2.11332582]
[1768281106412,13.1,139.38,139.36,9.3646122]
[1768281106610,13.1,139.38,139.36,2.18902207]
[1768281106805,13.1,139.38,139.36,0.07569625]
[1768281107116,13.1,139.38,139.36,2.11332582]
[1768281107510,13.1,139.38,139.35,7.25176356]
[1768281107511,13.1,139.38,139.35,0.07569625]
[1768281107712,13.1,139.38,139.36,2.11332582]
[1768281107915,13.1,139.38,139.35,2.18902207]
[1768281109525,13.1,139.37,139.35,10.54924891]
[1768281109836,0.02430375,139.41,139.36,6.59499984]
[1768281110000,0.02430375,139.41,139.39,3.29749992]
[1768281110204,0.02430375,139.41,139.38,3.29749992]
[1768281110398,0.02430375,139.41,139.39,3.29749992]
[1768281111300,0.02430375,139.41,139.38,3.29749992]
[1768281112027,0.65825252,139.4,139.35,10.47326625]
[1768281112622,0.65825252,139.4,139.35,3.29749992]
[1768281112943,13.75825252,139.39,139.34,10.47411997]
[1768281113323,13.75825252,139.39,139.35,10.47351599]
[1768281115020,0.65825252,139.39,139.35,10.47351599]
[1768281115197,13.1,139.38,139.35,10.47351599]
[1768281115397,13.75825252,139.39,139.35,10.47351599]
[1768281116418,0.65825252,139.39,139.35,10.47351599]
[1768281116635,13.75825252,139.39,139.35,10.47351599]
[1768281118241,13.75825252,139.39,139.35,7.97351599]
[1768281119017,13.1,139.38,139.35,7.97351599]
[1768281120223,13.1,139.38,139.34,10.47402049]
[1768281120524,13.75825252,139.38,139.34,10.47402049]
[1768281120833,0.02430375,139.41,139.37,3.29749992]
[1768281121041,0.02430375,139.41,139.36,3.29749992]
[1768281121042,0.02430375,139.41,139.39,3.29749992]
[1768281121214,0.02430375,139.41,139.38,3.29749992]
[1768281122103,0.02430375,139.41,139.39,3.29749992]
[1768281122935,0.02430375,139.41,139.39,10.47158627]
[1768281123231,1e-08,139.43,139.4,6.59499984]
[1768281123406,0.65825252,139.46,139.42,3.29749992]
[1768281124932,0.65825252,139.46,139.41,3.29749992]
[1768281125114,0.66929215,139.45,139.41,7.17299184]
[1768281125320,0.66929215,139.45,139.4,3.29749992]
[1768281125628,0.66929215,139.45,139.41,7.17305191]
[1768281127005,0.66929215,139.45,139.4,3.29749992]
[1768281127741,0.66929215,139.45,139.41,3.29749992]
[1768281128616,0.66929215,139.45,139.37,127.41300853]
[1768281128617,0.66929215,139.45,139.42,3.29749992]
[1768281128817,0.66929215,139.45,139.37,127.41300853]
[1768281129135,0.66929215,139.45,139.41,10.47051136]
[1768281129742,0.66929215,139.45,139.41,3.29749992]
[1768281130142,0.66929215,139.45,139.41,10.47052794]
[1768281132421,0.66929215,139.45,139.41,7.17302802]
[1768281132616,0.66929215,139.45,139.41,10.47052794]
[1768281133443,0.66929215,139.45,139.41,3.29749992]
[1768281133738,0.78702394,139.47,139.43,3.29749992]
[1768281133938,0.68702394,139.51,139.44,3.29749992]
[1768281134317,0.68702394,139.51,139.49,3.29749992]
[1768281134643,13.78702394,139.53,139.49,3.25364235]
[1768281134949,0.68702394,139.52,139.48,3.29749992]
[1768281135110,0.68702394,139.5,139.46,3.29749992]
[1768281135315,0.68702394,139.49,139.46,3.29749992]
[1768281135521,0.68702394,139.49,139.46,2.57249992]
[1768281135737,0.68702394,139.49,139.44,3.29749992]
[1768281135954,0.68702394,139.49,139.45,3.29749992]
[1768281136424,0.58702394,139.48,139.44,3.29749992]
[1768281137238,0.5821437,139.46,139.42,3.29749992]
[1768281137435,0.10383143,139.45,139.4,7.17345398]
[1768281137750,0.10383143,139.45,139.4,7.85444042]
[1768281137991,0.10383143,139.45,139.41,3.29749992]
[1768281140056,0.57736058,139.44,139.4,3.29749992]
[1768281140269,10.56768115,139.45,139.41,0.68098644]
[1768281140430,0.5821437,139.44,139.4,3.29749992]
[1768281140636,0.55214372,139.44,139.4,3.29749992]
[1768281140941,0.55214372,139.44,139.4,3.97848636]
[1768281142056,0.55214372,139.44,139.4,3.29749992]
[1768281142352,13.1,139.43,139.39,3.29749992]
[1768281142744,13.65702396,139.43,139.39,3.29749992]
[1768281143931,0.55702396,139.43,139.39,3.29749992]
[1768281144157,13.65702396,139.43,139.39,3.29749992]
[1768281144654,3.84994364,139.49,139.43,0.68098644]
[1768281144835,0.10353443,139.48,139.43,0.68098644]
[1768281145029,3.40103435,139.48,139.44,3.29749992]
[1768281145254,3.40103435,139.48,139.43,3.97848636]
[1768281145458,0.54795463,139.47,139.43,3.97848636]
[1768281145660,0.54795463,139.47,139.43,3.29749992]
[1768281145836,3.84545455,139.47,139.43,3.29749992]
[1768281146033,0.54795463,139.47,139.43,3.29749992]
[1768281146643,13.64795463,139.47,139.43,3.29749992]
[1768281147232,0.10797863,139.46,139.43,3.29749992]
[1768281147459,13.1,139.47,139.43,3.97848636]
[1768281147840,0.10353443,139.46,139.43,3.29749992]
[1768281148550,13.1,139.47,139.43,3.29749992]
[1768281148760,13.1,139.47,139.43,3.97848636]
[1768281148951,0.55244372,139.46,139.43,3.29749992]
[1768281149264,10.56650524,139.47,139.42,0.68098644]
[1768281149563,0.55244372,139.46,139.43,3.29749992]
[1768281149959,0.55244372,139.46,139.42,10.47004244]
[1768281150344,0.55244372,139.46,139.4,3.97848636]
[1768281150345,0.55244372,139.46,139.41,7.17294538]
[1768281150668,0.55244372,139.46,139.42,3.29749992]
[1768281151439,0.55244372,139.46,139.41,7.85393182]
[1768281151640,0.55244372,139.46,139.42,3.29749992]
[1768281152462,0.10353443,139.45,139.41,3.29749992]
[1768281152653,0.55244372,139.44,139.4,11.15195579]
[1768281152968,3.29749992,139.45,139.42,0.68098644]
[1768281153148,0.55244372,139.44,139.4,7.17346943]
[1768281153356,0.10353443,139.43,139.39,10.47150709]
[1768281154762,0.10353443,139.43,139.39,3.29749992]
[1768281155157,3.40103435,139.43,139.39,3.29749992]
[1768281156473,3.29749992,139.43,139.39,4.00955648]
[1768281156675,3.29749992,139.43,139.4,0.71205656]
[1768281156877,0.55702396,139.49,139.42,4.00955648]
[1768281157056,0.55244372,139.5,139.46,3.29749992]
[1768281157377,0.55244372,139.5,139.47,3.29749992]
[1768281157846,0.10353443,139.49,139.41,0.71205656]
[1768281158046,0.10353443,139.49,139.45,3.29749992]
[1768281158449,0.10353443,139.49,139.46,3.29749992]
[1768281159060,0.10353443,139.49,139.45,10.46852618]
[1768281160272,16.39749992,139.5,139.46,0.71205656]
[1768281160469,16.39749992,139.5,139.46,4.00955648]
[1768281160767,13.1,139.5,139.46,4.00955648]
[1768281160972,16.39749992,139.5,139.46,4.00955648]
[1768281163182,3.29749992,139.5,139.46,4.00955648]
[1768281163393,16.39749992,139.5,139.46,4.00955648]
[1768281163760,3.29749992,139.5,139.46,4.00955648]
[1768281163966,16.39749992,139.5,139.46,4.00955648]
[1768281164282,23.56606652,139.5,139.46,0.71205656]
[1768281164476,3.29749992,139.49,139.46,0.71205656]
[1768281164678,23.56606652,139.5,139.46,4.00955648]
[1768281165073,3.29749992,139.49,139.46,0.71205656]
[1768281165392,20.2685666,139.5,139.46,0.71205656]
[1768281165693,23.56606652,139.5,139.46,4.00955648]
[1768281165877,3.29749992,139.49,139.46,0.71205656]
[1768281166686,16.39749992,139.5,139.47,0.71205656]
[1768281166897,16.39749992,139.5,139.47,0.65205656]
[1768281167095,3.29749992,139.5,139.47,0.65205656]
[1768281168195,3.29749992,139.5,139.46,3.29749992]
[1768281168895,3.29749992,139.5,139.46,4.00955648]
[1768281169094,3.29749992,139.47,139.46,0.71205656]
[1768281169279,3.29749992,139.47,139.43,0.71205656]
[1768281169480,3.29749992,139.45,139.43,0.71205656]
[1768281169691,3.40665473,139.48,139.43,0.71205656]
[1768281169692,3.29749992,139.46,139.43,0.71205656]
[1768281170697,3.29749992,139.46,139.42,3.29749992]
[1768281170698,3.89929037,139.46,139.42,3.29749992]
[1768281170995,0.099,139.47,139.44,3.29749992]
[1768281171175,3.29749992,139.47,139.43,4.00955648]
[1768281171371,2.10833664,139.47,139.43,2.8203932]
[1768281171577,2.10833664,139.47,139.42,7.17253284]
[1768281171578,0.61184372,139.47,139.44,2.10833664]
[1768281171996,2.72018036,139.47,139.42,7.17253284]
[1768281172302,2.20733664,139.47,139.43,2.10833664]
[1768281172498,0.10412843,139.46,139.43,2.10833664]
[1768281173277,2.21246507,139.46,139.42,2.8203932]
[1768281173581,7.26900962,139.47,139.42,2.8203932]
[1768281173786,2.10833664,139.46,139.43,0.71205656]
[1768281173988,0.10412843,139.45,139.42,2.10833664]
[1768281174187,2.10833664,139.46,139.42,2.10833664]
[1768281174397,0.099,139.46,139.42,2.8203932]
[1768281174597,2.20733664,139.46,139.42,2.8203932]
[1768281174799,9.37789095,139.46,139.42,0.71205656]
[1768281174998,2.72018036,139.45,139.41,2.10833664]
[1768281175177,0.099,139.48,139.44,0.71205656]
[1768281175373,0.099,139.48,139.46,2.10833664]
[1768281175578,7.16809969,139.51,139.46,2.04833665]
[1768281175579,13.1,139.49,139.46,2.04833665]
[1768281176074,2.7253606,139.5,139.46,2.04833665]
[1768281176075,0.61184372,139.48,139.46,2.04833665]
[1768281176280,13.71184372,139.48,139.45,2.10833664]
[1768281176696,13.1,139.48,139.45,2.8203932]
[1768281176888,13.71702396,139.48,139.45,2.10833664]
[1768281177604,13.71702396,139.48,139.45,2.04833666]
[1768281178102,13.1,139.48,139.46,0.71205656]
[1768281181084,13.1,139.47,139.46,0.71205656]
[1768281181494,2.10833664,139.49,139.46,0.71205656]
[1768281181822,13.1,139.48,139.46,0.71205656]
[1768281182302,13.1,139.47,139.46,0.71205656]
[1768281183896,15.20833664,139.47,139.44,0.71205656]
[1768281187191,2.10833664,139.47,139.44,0.71205656]
[1768281187392,13.1,139.46,139.44,0.71205656]
[1768281187904,2.10833664,139.47,139.44,0.71205656]
[1768281188091,13.1,139.45,139.44,0.71205656]
[1768281190510,12.375,139.45,139.44,0.71205656]
[1768281190704,12.375,139.45,139.44,2.8203932]
[1768281191711,9.38213404,139.48,139.44,2.8203932]
[1768281191910,13.1,139.47,139.45,0.70436404]
[1768281193004,13.1,139.47,139.44,28.52698768]
[1768281193207,13.1,139.47,139.44,26.41865104]
[1768281193408,15.20833664,139.47,139.44,26.41865104]
[1768281193808,2.10833664,139.47,139.44,26.41865104]
[1768281193990,13.1,139.46,139.44,26.41865104]
[1768281194187,7.16845878,139.5,139.46,0.69894132]
[1768281194392,7.16845878,139.5,139.47,2.80727796]
[1768281195095,13.1,139.49,139.46,2.80727796]
[1768281195289,13.1,139.48,139.46,2.80727796]
[1768281195502,13.1,139.48,139.46,0.69894132]
[1768281196196,9.99181192,139.5,139.46,0.69894132]
[1768281196513,13.1,139.49,139.46,2.80727796]
[1768281196827,9.99181192,139.5,139.46,2.80727796]
[1768281197015,13.1,139.48,139.46,2.80727796]
[1768281197516,9.99181192,139.5,139.46,2.80727796]
[1768281197720,13.1,139.49,139.46,2.80727796]
[1768281198401,22.88788863,139.51,139.47,0.69894132]
[1768281198613,20.98788863,139.51,139.48,2.10833664]
[1768281199007,23.09622527,139.51,139.47,2.80727796]
[1768281200220,13.1,139.5,139.48,0.69894132]
[1768281200425,13.1,139.52,139.49,2.80727796]
[1768281200921,2.82812171,139.53,139.49,2.80727796]
[1768281201434,13.1,139.52,139.49,2.80727796]
[1768281203326,13.8150165,139.52,139.49,2.80727796]
[1768281203534,0.7150165,139.52,139.49,2.80727796]
[1768281203703,13.8150165,139.52,139.5,2.10833664]
[1768281204026,13.1,139.52,139.5,2.10833664]
[1768281204207,0.8150165,139.54,139.51,2.80727796]
[1768281205515,0.1,139.54,139.51,2.80727796]
[1768281205725,11.2,139.56,139.53,2.80727796]
[1768281205926,11.2,139.56,139.54,2.10833664]
[1768281206112,11.2,139.56,139.53,2.80727796]
[1768281206432,21.18879288,139.56,139.51,7.86679969]
[1768281206724,21.18879288,139.56,139.52,2.80727796]
[1768281207236,21.18879288,139.56,139.52,0.69894132]
[1768281207237,14.02335314,139.56,139.52,0.69894132]
[1768281207409,11.9150165,139.56,139.52,2.80727796]
[1768281207612,19.08040217,139.56,139.53,0.69894132]
[1768281207924,21.18873881,139.56,139.53,0.69894132]
[1768281208506,19.08040217,139.56,139.53,2.10833664]
[1768281208721,21.18873881,139.56,139.52,2.80727796]
[1768281209209,0.7150165,139.56,139.53,2.80727796]
[1768281209424,0.7150165,139.56,139.53,0.69894132]
[1768281209725,0.71973738,139.55,139.52,2.10833664]
[1768281209909,2.82807402,139.55,139.51,2.80727796]
[1768281210110,0.71973738,139.55,139.52,2.10833664]
[1768281211331,7.88524492,139.56,139.52,2.80727796]
[1768281211627,9.99358156,139.56,139.52,2.80727796]
[1768281212237,9.99358156,139.56,139.52,0.69894132]
[1768281212532,9.99358156,139.56,139.52,2.80727796]
[1768281213131,9.99358156,139.56,139.52,0.69894132]
[1768281213326,9.99358156,139.56,139.52,2.80727796]
[1768281213522,0.71973738,139.54,139.49,0.69894132]
[1768281213727,2.82807402,139.54,139.5,2.80727796]
[1768281214330,0.71973738,139.54,139.5,2.80727796]
[1768281214530,2.82807402,139.54,139.5,2.80727796]
[1768281214707,2.82807402,139.54,139.51,0.69142098]
[1768281215943,0.71973738,139.54,139.51,0.69142098]
[1768281216839,0.71973738,139.54,139.5,2.79975762]
[1768281217215,0.71973738,139.54,139.51,2.10833664]
[1768281220036,0.71973738,139.54,139.51,2.79975762]
[1768281221048,18.37092694,139.57,139.54,0.69142098]
[1768281221231,19.07134704,139.57,139.55,2.10833664]
[1768281221839,19.07134704,139.57,139.54,2.10833664]
[1768281222042,0.7004201,139.56,139.53,0.69142098]
[1768281222248,19.07134704,139.57,139.53,0.69142098]
[1768281222450,18.37092694,139.57,139.56,2.10833664]
[1768281222638,18.37092694,139.57,139.54,0.69142098]
[1768281222941,18.37092694,139.57,139.56,2.79975762]
[1768281223146,18.37092694,139.57,139.56,0.69142098]
[1768281223446,18.37092694,139.57,139.55,2.79975762]
[1768281224249,18.37092694,139.57,139.55,0.69142098]
[1768281224547,18.37092694,139.57,139.55,2.79975762]
[1768281225343,18.37092694,139.57,139.55,0.69142098]
[1768281226454,19.07134704,139.57,139.53,0.69142098]
[1768281226752,0.7004201,139.56,139.53,0.69142098]
[1768281226962,19.07134704,139.57,139.53,0.69142098]
[1768281227129,19.07134704,139.57,139.53,2.79975762]
[1768281227740,26.2362365,139.57,139.53,0.69142098]
[1768281227942,0.7004201,139.56,139.51,13.77142098]
[1768281228145,0.7004201,139.55,139.51,15.87975762]
[1768281228348,0.7004201,139.55,139.51,0.69142098]
[1768281228548,7.86632719,139.55,139.51,0.69142098]
[1768281229759,0.7004201,139.55,139.51,2.79975762]
[1768281229962,9.97444375,139.56,139.52,0.69142098]
[1768281230270,7.86610711,139.56,139.52,0.69142098]
[1768281230865,18.37092694,139.57,139.53,2.10833664]
[1768281231049,18.37092694,139.57,139.55,2.10833664]
[1768281231352,18.37092694,139.57,139.52,2.10833664]
[1768281231353,18.37092694,139.57,139.51,7.16781906]
[1768281231556,18.37092694,139.57,139.54,3.28869353]
[1768281232333,18.37092694,139.57,139.52,10.45610008]
[1768281232334,18.37092694,139.57,139.55,3.28869353]
[1768281233160,18.37092694,139.57,139.54,3.28869353]
[1768281233373,18.37092694,139.57,139.53,0.14155506]
[1768281233668,18.37092694,139.57,139.54,3.28869353]
[1768281233962,18.37092694,139.57,139.54,3.43024859]
[1768281235358,0.7004201,139.6,139.56,3.33024859]
[1768281235651,0.7004201,139.6,139.57,3.28869353]
[1768281236037,0.7004201,139.6,139.56,3.33024859]
[1768281236938,0.7004201,139.6,139.56,3.28869353]
[1768281239538,3.98911363,139.6,139.55,10.4959173]
[1768281240161,0.7004201,139.59,139.55,10.45436224]
[1768281240371,0.7004201,139.59,139.54,0.04155506]
[1768281240575,0.7004201,139.59,139.55,3.28869353]
[1768281240935,3.98911363,139.58,139.54,0.04155506]
[1768281241157,3.98911363,139.58,139.54,3.33024859]
[1768281242251,0.7004201,139.58,139.54,0.04155506]
[1768281242457,0.7004201,139.58,139.54,3.33024859]
[1768281244454,0.7004201,139.58,139.54,3.28869353]
[1768281244764,0.7004201,139.58,139.53,7.20836543]
[1768281244965,0.7004201,139.58,139.54,3.28869353]
[1768281246660,0.7004201,139.58,139.53,7.20836543]
[1768281246966,0.7004201,139.58,139.54,3.28869353]
[1768281247960,0.66578215,139.57,139.53,7.20836543]
[1768281248151,0.66578215,139.57,139.54,3.28869353]
[1768281248670,0.66578215,139.57,139.53,7.20836543]
[1768281248855,0.66578215,139.57,139.54,3.28869353]
[1768281249673,0.66578215,139.54,139.49,0.04155506]
[1768281249845,17.03447568,139.54,139.49,3.33024859]
[1768281250462,0.66578215,139.52,139.48,0.04155506]
[1768281250770,3.95447568,139.52,139.48,3.33024859]
[1768281251142,3.95447568,139.52,139.48,0.04155506]
[1768281251365,3.95447568,139.52,139.48,3.28869353]
[1768281251764,0.66578215,139.56,139.51,0.04155506]
[1768281251960,0.66578215,139.55,139.51,0.04155506]
[1768281252152,0.66578215,139.55,139.51,3.33024859]
[1768281252350,0.66578215,139.56,139.51,0.04155506]
[1768281252544,0.66578215,139.55,139.51,0.04155506]
[1768281252965,0.66578215,139.55,139.51,3.33024859]
[1768281253271,0.66578215,139.55,139.51,3.28869353]
[1768281253447,0.66578215,139.55,139.5,0.04155506]
[1768281253775,0.66578215,139.55,139.51,3.28869353]
[1768281253959,13.74578215,139.55,139.51,3.28869353]
[1768281254166,0.70758094,139.54,139.5,0.04155506]
[1768281254472,0.70758094,139.54,139.5,3.33024859]
[1768281254771,0.70758094,139.54,139.51,3.28869353]
[1768281256662,13.78758094,139.55,139.51,7.16781228]
[1768281256979,0.70758094,139.54,139.5,3.28869353]
[1768281257472,0.70758094,139.54,139.49,0.04155506]
[1768281257669,0.70758094,139.54,139.5,3.28869353]
[1768281257852,0.70758094,139.53,139.48,7.21087959]
[1768281258055,0.70758094,139.53,139.49,3.28869353]
[1768281258261,0.70758094,139.52,139.49,3.28869353]
[1768281259769,0.70758094,139.52,139.48,3.28869353]
[1768281259770,0.70758094,139.51,139.48,3.28869353]
[1768281259969,0.70758094,139.51,139.46,0.04155506]
[1768281260163,0.70758094,139.51,139.48,3.28869353]
[1768281260347,0.70758094,139.52,139.48,3.28869353]
[1768281261276,0.70758094,139.52,139.5,3.28869353]
[1768281261455,15.0,139.55,139.51,3.28869353]
[1768281261456,0.70758094,139.55,139.51,3.28869353]
[1768281261766,0.70758094,139.55,139.53,3.28869353]